lending/lending_fUSD_20240809
["ID","MTS","AMOUNT","RATE_DAILY","PERIOD"]
[334554526,1723201851968,-540.9,0.00010999,2]
[334554527,1723201851980,-500.0,0.00010999,2]
[334554528,1723201852081,-540.9,0.00010999,2]
[334554529,1723201852093,-500.0,0.00010999,2]
[334554530,1723201852103,-540.9,0.00010999,2]
[334554531,1723201852113,-151.0,0.00010999,2]
[334554532,1723201852122,-500.0,0.00010999,2]
[334554533,1723201852132,-540.9,0.00010999,2]
[334554534,1723201852142,-151.0,0.00010999,2]
[334554535,1723201852152,-500.0,0.00010999,2]
[334554536,1723201852162,-540.9,0.00010999,2]
[334554537,1723201852174,-172.875492,0.00010999,2]
[334554538,1723201852184,-500.0,0.00010999,2]
[334554539,1723201852195,-540.9,0.00010999,2]
[334554540,1723201852206,-500.0,0.00010999,2]
[334554541,1723201852216,-500.0,0.00010999,2]
[334554542,1723201852226,-540.9,0.00010999,2]
[334554543,1723201852236,-500.0,0.00010999,2]
[334554544,1723201852246,-540.9,0.00010999,2]
[334554545,1723201852257,-440.53179291,0.00010999,2]
[334554546,1723201852269,-540.9,0.00010999,2]
[334554547,1723201852279,-540.9,0.00010999,2]
[334554548,1723201852288,-540.9,0.00010999,2]
[334554549,1723201852299,-541.01,0.00010999,2]
[334554550,1723201852310,-221.459958,0.00010999,2]
[334554551,1723201852320,-221.459958,0.00010999,2]
[334554552,1723201852330,-221.459958,0.00010999,2]
[334554553,1723201852340,-221.459958,0.00010999,2]
[334554554,1723201852349,-221.459958,0.00010999,2]
[334554555,1723201852360,-221.459958,0.00010999,2]
[334554556,1723201852370,-1022.497094,0.00010999,2]
[334554557,1723201852380,-1022.497094,0.00010999,2]
[334554558,1723201852390,-1022.497094,0.00010999,2]
[334554559,1723201852401,-1022.497094,0.00010999,2]
[334554560,1723201852411,-1022.497094,0.00010999,2]
[334554561,1723201852422,-1022.497094,0.00010999,2]
[334554562,1723201852432,-500.0,0.00010999,2]
[334554563,1723201852442,-500.0,0.00010999,2]
[334554564,1723201852454,-500.0,0.00010999,2]
[334554565,1723201852463,-500.0,0.00010999,2]
[334554566,1723201852473,-500.0,0.00010999,2]
[334554567,1723201852482,-408.85146022,0.00010999,2]
[334554568,1723201852493,-1623.28,0.00010999,2]
[334554569,1723201852503,-1623.28,0.00010999,2]
[334554570,1723201852513,-1623.28,0.00010999,2]
[334554571,1723201852523,-1623.28,0.00010999,2]
[334554572,1723201852532,-151.0,0.00010999,2]
[334554573,1723201852543,-1623.28,0.00010999,2]
[334554574,1723201852554,-1623.28,0.00010999,2]
[334554575,1723201852564,-151.0,0.00010999,2]
[334554576,1723201852573,-1623.28,0.00010999,2]
[334554577,1723201852583,-151.0,0.00010999,2]
[334554578,1723201852593,-1623.28,0.00010999,2]
[334554579,1723201852602,-1623.28,0.00010999,2]
[334554580,1723201852613,-1623.28,0.00010999,2]
[334554581,1723201852624,-1623.28,0.00010999,2]
[334554582,1723201852635,-1623.28,0.00010999,2]
[334554583,1723201852645,-1623.28,0.00010999,2]
[334554584,1723201852656,-1623.28,0.00010999,2]
[334554585,1723201852665,-1623.28,0.00010999,2]
[334554586,1723201852674,-1623.28,0.00010999,2]
[334554587,1723201852684,-1623.28,0.00010999,2]
[334554588,1723201852693,-1623.49,0.00010999,2]
[334554589,1723201852703,-151.0,0.00010999,2]
[334554590,1723201852713,-151.0,0.00010999,2]
[334554591,1723201852723,-151.0,0.00010999,2]
[334554592,1723201852733,-151.0,0.00010999,2]
[334554593,1723201852745,-151.0,0.00010999,2]
[334554594,1723201852755,-151.0,0.00010999,2]
[334554595,1723201852766,-151.0,0.00010999,2]
[334554596,1723201852778,-3280.85,0.00010999,2]
[334554597,1723201852787,-3280.85,0.00010999,2]
[334554598,1723201852800,-3280.85,0.00010999,2]
[334554599,1723201852818,-3280.85,0.00010999,2]
[334554600,1723201852828,-3280.85,0.00010999,2]
[334554601,1723201852838,-3280.85,0.00010999,2]
[334554602,1723201852847,-3280.85,0.00010999,2]
[334554603,1723201852857,-3280.85,0.00010999,2]
[334554604,1723201852867,-3280.85,0.00010999,2]
[334554605,1723201852877,-3280.85,0.00010999,2]
[334554606,1723201852887,-3280.85,0.00010999,2]
[334554607,1723201852897,-3280.85,0.00010999,2]
[334554608,1723201852908,-3280.85,0.00010999,2]
[334554609,1723201852918,-3280.85,0.00010999,2]
[334554610,1723201852927,-3280.85,0.00010999,2]
[334554611,1723201852936,-3280.85,0.00010999,2]
[334554612,1723201852945,-3280.85,0.00010999,2]
[334554613,1723201852955,-3280.94710595,0.00010999,2]
[334554614,1723201852965,-408.4,0.00010999,2]
[334554615,1723201852974,-151.0,0.00010999,2]
[334554616,1723201852984,-151.0,0.00010999,2]
[334554617,1723201852994,-188881.08063026,0.00011,2]
[334554618,1723201853004,-27236.66723614,0.00011,2]
[334554619,1723201853171,-692596.7353599,0.00011,2]
[334554620,1723201853184,-337.374,0.00011,2]
[334554621,1723201853289,-802.06340159,0.00011,2]
[334554622,1723201854120,-60772.0,0.00011,2]
[334554623,1723201854133,-3918.7910805,0.00011,2]
[334554624,1723201854145,-1963.95623651,0.00011,2]
[334554625,1723201854156,-1144.36375668,0.00011,2]
[334554626,1723201854167,-320.26401847,0.00011,2]
[334554627,1723201854237,-850.0,0.00011,2]
[334554628,1723201854248,-1206.09817827,0.00011,2]
[334554629,1723201854259,-5604.99033492,0.00011,2]
[334554630,1723201854271,-346.76974357,0.00011,2]
[334554631,1723201854283,-4940.94527216,0.00011,2]
[334554632,1723201854770,-323.10619773,0.00011,2]
[334554633,1723201854786,-402.33270395,0.00011,2]
[334554634,1723201854806,-768.85,0.00011,2]
[334554635,1723201854820,-432.77116256,0.00011,2]
[334554636,1723201869984,494.31,8.765e-05,2]
[334554637,1723202181009,153776.0,0.00025,60]
[334554638,1723202288993,5822.02853294,9.641e-05,2]
[334554639,1723202289015,4177.97146706,9.641e-05,2]
[334554640,1723202298031,363.99,9.605e-05,2]
[334554641,1723202308188,445.86,9.641e-05,2]
[334554643,1723202345064,529.7,8.219e-05,2]
[334554644,1723202452077,292.04,9.533e-05,2]
[334554648,1723202915495,182.01,9.531e-05,2]
[334554650,1723203031668,-434.114744,9.95e-05,2]
[334554651,1723203031677,-155.0,0.0001,2]
[334554652,1723203031687,-1239.68345121,0.0001,2]
[334554656,1723203031723,-231.21207499,0.0001,2]
[334554657,1723203031733,-707.96,0.00010068,2]
[334554658,1723203031742,-372.97,0.00010121,2]
[334554659,1723203031753,-372.97,0.00010124,2]
[334554660,1723203031762,-372.97,0.00010127,2]
[334554661,1723203031771,-881.66705668,0.00010127,2]
[334554662,1723203031781,-372.97,0.00010129,2]
[334554663,1723203031790,-372.97,0.00010132,2]
[334554664,1723203031799,-372.97,0.00010135,2]
[334554665,1723203031809,-499.99,0.00010135,2]
[334554666,1723203031818,-372.97,0.00010137,2]
[334554667,1723203031827,-372.97,0.0001014,2]
[334554668,1723203031837,-300.0,0.00010142,2]
[334554669,1723203031846,-784.37,0.00010143,2]
[334554670,1723203031855,-372.97,0.00010143,2]
[334554671,1723203031864,-372.97,0.00010145,2]
[334554672,1723203031873,-372.97,0.00010148,2]
[334554673,1723203031884,-372.97,0.00010151,2]
[334554674,1723203031897,-372.97,0.00010153,2]
[334554675,1723203031908,-372.97,0.00010156,2]
[334554676,1723203031918,-372.97,0.00010159,2]
[334554677,1723203031928,-372.97,0.00010161,2]
[334554678,1723203031938,-372.97,0.00010164,2]
[334554679,1723203031948,-372.97,0.00010167,2]
[334554680,1723203031959,-372.97,0.00010169,2]
[334554681,1723203031968,-372.97,0.00010172,2]
[334554682,1723203031978,-150.0,0.000104,2]
[334554683,1723203031988,-529.7,0.00010455,2]
[334554684,1723203031998,-782.83094332,0.0001049,2]
[334554685,1723203032008,-15660.8704,0.000105,2]
[334554687,1723203032020,-69414.008,0.000105,2]
[334554689,1723203032031,-420.86,0.000105,2]
[334554691,1723203032041,-420.86,0.000105,2]
[334554693,1723203032050,-150.78,0.000105,2]
[334554695,1723203032061,-155.0,0.00010624,2]
[334554697,1723203032073,-155.0,0.00010624,2]
[334554699,1723203032083,-155.0,0.00010624,2]
[334554700,1723203032097,-310.0,0.00010624,2]
[334554701,1723203032107,-155.0,0.00010624,2]
[334554702,1723203032117,-300.06053377,0.00010624,2]
[334554703,1723203032127,-155.0,0.00010624,2]
[334554704,1723203032141,-310.0,0.00010624,2]
[334554705,1723203032151,-3395.85717706,0.000107,2]
[334554706,1723203032161,-343.08,0.000107,2]
[334554707,1723203032171,-420.55,0.000107,2]
[334554708,1723203032182,-292.04,0.00010724,2]
[334554709,1723203032192,-835.07,0.000108,2]
[334554710,1723203032201,-835.07,0.000108,2]
[334554711,1723203032211,-835.07,0.000108,2]
[334554712,1723203032220,-835.07,0.000108,2]
[334554713,1723203032230,-835.07,0.000108,2]
[334554714,1723203032240,-835.07,0.000108,2]
[334554715,1723203032250,-835.07,0.000108,2]
[334554716,1723203032260,-835.07,0.000108,2]
[334554717,1723203032270,-533.88,0.000108,2]
[334554718,1723203032280,-363.99,0.00010805,2]
[334554719,1723203032290,-7151.0,0.0001088,2]
[334554720,1723203032300,-169.27176964,0.000109,2]
[334554721,1723203032309,-1068.71689337,0.000109,2]
[334554722,1723203032319,-835.07,0.000109,2]
[334554723,1723203032329,-835.07,0.000109,2]
[334554724,1723203032338,-7500.0,0.000109,2]
[334554725,1723203032349,-1214.21138658,0.000109,2]
[334554726,1723203032359,-207.21804279,0.000109,2]
[334554727,1723203032527,-1229.57630319,0.000109,2]
[334554728,1723203032537,-632.53827274,0.000109,2]
[334554729,1723203032547,-152.10989691,0.00010958,2]
[334554730,1723203032557,-500.0,0.00010958,2]
[334554731,1723203032566,-536.05,0.00010958,2]
[334554732,1723203032576,-500.0,0.00010958,2]
[334554733,1723203032585,-500.0,0.00010958,2]
[334554734,1723203032595,-155.31846229,0.00010958,2]
[334554735,1723203032605,-470.0,0.00010958,2]
[334554736,1723203032614,-495.0,0.00010958,2]
[334554737,1723203032624,-500.0,0.00010958,2]
[334554738,1723203032637,-500.0,0.00010958,2]
[334554739,1723203032652,-500.0,0.00010958,2]
[334554740,1723203032661,-500.0,0.00010958,2]
[334554741,1723203032671,-500.0,0.00010958,2]
[334554742,1723203032681,-500.0,0.00010958,2]
[334554743,1723203032691,-177.88,0.00010958,2]
[334554744,1723203032701,-480.0,0.00010958,2]
[334554745,1723203032710,-500.0,0.00010958,2]
[334554746,1723203032720,-500.0,0.00010958,2]
[334554747,1723203032730,-501.55675344,0.00010958,2]
[334554748,1723203032739,-500.0,0.00010958,2]
[334554749,1723203032749,-500.0,0.00010958,2]
[334554750,1723203032758,-500.0,0.00010958,2]
[334554751,1723203032769,-500.0,0.00010958,2]
[334554752,1723203032779,-500.0,0.00010958,2]
[334554753,1723203032789,-500.0,0.00010958,2]
[334554754,1723203032798,-500.0,0.00010958,2]
[334554755,1723203032808,-157.92115734,0.00010958,2]
[334554756,1723203032817,-2000.0,0.00010959,2]
[334554757,1723203032827,-250.0,0.00010959,2]
[334554758,1723203032836,-500.0,0.00010986,2]
[334554759,1723203032846,-490.42550481,0.00010997,2]
[334554760,1723203032856,-500.0,0.00010998,2]
[334554761,1723203032866,-500.0,0.00010998,2]
[334554762,1723203032875,-824.3975272,0.00010998,2]
[334554763,1723203032886,-1910.6581138,0.00010998,2]
[334554764,1723203032896,-275.15,0.00010998,2]
[334554765,1723203032905,-2459.8208711,0.00010998,2]
[334554766,1723203032915,-388.07971391,0.00010999,2]
[334554767,1723203032924,-1096.07314168,0.00010999,2]
[334554768,1723203032935,-300.02,0.00010999,2]
[334554769,1723203032944,-500.0,0.00010999,2]
[334554770,1723203032954,-500.0,0.00010999,2]
[334554771,1723203032963,-500.0,0.00010999,2]
[334554772,1723203032972,-500.0,0.00010999,2]
[334554773,1723203032981,-500.0,0.00010999,2]
[334554774,1723203032990,-500.0,0.00010999,2]
[334554775,1723203032999,-500.0,0.00010999,2]
[334554776,1723203033009,-500.41152105,0.00010999,2]
[334554777,1723203033018,-500.0,0.00010999,2]
[334554778,1723203033028,-500.0,0.00010999,2]
[334554779,1723203033037,-500.0,0.00010999,2]
[334554780,1723203033047,-501.38213153,0.00010999,2]
[334554781,1723203033057,-500.0,0.00010999,2]
[334554782,1723203033067,-500.0,0.00010999,2]
[334554783,1723203033076,-500.0,0.00010999,2]
[334554784,1723203033086,-501.47857491,0.00010999,2]
[334554785,1723203033098,-500.0,0.00010999,2]
[334554786,1723203033108,-500.0,0.00010999,2]
[334554787,1723203033117,-480.0,0.00010999,2]
[334554788,1723203033128,-500.0,0.00010999,2]
[334554789,1723203033139,-500.0,0.00010999,2]
[334554790,1723203033148,-500.0,0.00010999,2]
[334554791,1723203033158,-500.0,0.00010999,2]
[334554792,1723203033167,-500.0,0.00010999,2]
[334554793,1723203033178,-500.0,0.00010999,2]
[334554794,1723203033187,-500.63397016,0.00010999,2]
[334554795,1723203033198,-500.0,0.00010999,2]
[334554796,1723203033207,-500.0,0.00010999,2]
[334554797,1723203033216,-501.22962438,0.00010999,2]
[334554798,1723203033226,-500.0,0.00010999,2]
[334554799,1723203033235,-500.0,0.00010999,2]
[334554800,1723203033244,-501.68086855,0.00010999,2]
[334554801,1723203033254,-500.0,0.00010999,2]
[334554802,1723203033263,-501.33735523,0.00010999,2]
[334554803,1723203033273,-500.0,0.00010999,2]
[334554804,1723203033283,-500.0,0.00010999,2]
[334554805,1723203033292,-500.0,0.00010999,2]
[334554806,1723203033301,-500.0,0.00010999,2]
[334554807,1723203033310,-500.0,0.00010999,2]
[334554808,1723203033320,-500.0,0.00010999,2]
[334554809,1723203033330,-607.64,0.00010999,2]
[334554810,1723203033340,-500.0,0.00010999,2]
[334554811,1723203033350,-500.0,0.00010999,2]
[334554812,1723203033359,-500.0,0.00010999,2]
[334554813,1723203033369,-500.0,0.00010999,2]
[334554814,1723203033378,-493.0,0.00010999,2]
[334554815,1723203033391,-500.0,0.00010999,2]
[334554816,1723203033401,-500.0,0.00010999,2]
[334554817,1723203033410,-500.0,0.00010999,2]
[334554818,1723203033419,-630.67192552,0.00010999,2]
[334554819,1723203033429,-501.16351571,0.00010999,2]
[334554820,1723203033439,-500.48419061,0.00010999,2]
[334554821,1723203033449,-500.73219421,0.00010999,2]
[334554822,1723203033459,-500.51661834,0.00010999,2]
[334554823,1723203033468,-501.21060659,0.00010999,2]
[334554824,1723203033478,-500.81430671,0.00010999,2]
[334554825,1723203033488,-500.0,0.00010999,2]
[334554826,1723203033498,-514.52,0.00010999,2]
[334554827,1723203033506,-500.0,0.00010999,2]
[334554828,1723203033516,-500.0,0.00010999,2]
[334554829,1723203033525,-500.0,0.00010999,2]
[334554830,1723203033534,-500.0,0.00010999,2]
[334554831,1723203033544,-500.0,0.00010999,2]
[334554832,1723203033554,-500.0,0.00010999,2]
[334554833,1723203033563,-500.0,0.00010999,2]
[334554834,1723203033573,-500.0,0.00010999,2]
[334554835,1723203033582,-500.0,0.00010999,2]
[334554836,1723203033591,-500.0,0.00010999,2]
[334554837,1723203033600,-500.0,0.00010999,2]
[334554838,1723203033609,-235.14,0.00010999,2]
[334554839,1723203033619,-421.60380804,0.00010999,2]
[334554840,1723203033628,-500.0,0.00010999,2]
[334554841,1723203033642,-164.68721538,0.00010999,2]
[334554842,1723203033651,-500.0,0.00010999,2]
[334554843,1723203033660,-500.0,0.00010999,2]
[334554844,1723203033669,-500.0,0.00010999,2]
[334554845,1723203033679,-314.04764056,0.00010999,2]
[334554846,1723203033689,-501.50793398,0.00010999,2]
[334554847,1723203033698,-501.03785322,0.00010999,2]
[334554848,1723203033707,-642.09405586,0.00010999,2]
[334554849,1723203033717,-498.51209435,0.00010999,2]
[334554850,1723203033726,-500.0,0.00010999,2]
[334554851,1723203033736,-500.0,0.00010999,2]
[334554852,1723203033745,-306.96,0.00010999,2]
[334554853,1723203033754,-506.73973172,0.00010999,2]
[334554854,1723203033764,-500.50935892,0.00010999,2]
[334554855,1723203033774,-503.56965255,0.00010999,2]
[334554856,1723203033783,-553.45325175,0.00010999,2]
[334554857,1723203033793,-500.78139509,0.00010999,2]
[334554858,1723203033802,-498.57838593,0.00010999,2]
[334554859,1723203033812,-504.3554707,0.00010999,2]
[334554860,1723203033822,-498.57153353,0.00010999,2]
[334554861,1723203033831,-289.10419573,0.00010999,2]
[334554862,1723203033840,-500.51576041,0.00010999,2]
[334554863,1723203033850,-500.44526741,0.00010999,2]
[334554864,1723203033860,-500.0,0.00010999,2]
[334554865,1723203033869,-500.90885077,0.00010999,2]
[334554866,1723203033879,-500.87230581,0.00010999,2]
[334554867,1723203033895,-513.2792655,0.00010999,2]
[334554868,1723203033905,-500.62151401,0.00010999,2]
[334554869,1723203033915,-504.57166068,0.00010999,2]
[334554870,1723203033924,-498.63135953,0.00010999,2]
[334554871,1723203033934,-500.41459577,0.00010999,2]
[334554872,1723203033943,-508.49832034,0.00010999,2]
[334554873,1723203033953,-502.68547694,0.00010999,2]
[334554874,1723203033962,-500.0,0.00010999,2]
[334554875,1723203033972,-500.0,0.00010999,2]
[334554876,1723203033982,-500.0,0.00010999,2]
[334554877,1723203033991,-500.0,0.00010999,2]
[334554878,1723203034001,-500.67492647,0.00010999,2]
[334554879,1723203034011,-500.0,0.00010999,2]
[334554880,1723203034020,-318.53757414,0.00010999,2]
[334554881,1723203034030,-321.02506659,0.00010999,2]
[334554882,1723203034039,-498.62502723,0.00010999,2]
[334554883,1723203034049,-500.0,0.00010999,2]
[334554884,1723203034059,-500.41460837,0.00010999,2]
[334554885,1723203034068,-501.19023084,0.00010999,2]
[334554886,1723203034078,-498.51232085,0.00010999,2]
[334554887,1723203034088,-500.0,0.00010999,2]
[334554888,1723203034101,-500.0,0.00010999,2]
[334554889,1723203034111,-500.0,0.00010999,2]
[334554890,1723203034120,-500.0,0.00010999,2]
[334554891,1723203034130,-500.0,0.00010999,2]
[334554892,1723203034146,-500.0,0.00010999,2]
[334554893,1723203034155,-500.0,0.00010999,2]
[334554894,1723203034164,-500.0,0.00010999,2]
[334554895,1723203034175,-500.0,0.00010999,2]
[334554896,1723203034184,-500.0,0.00010999,2]
[334554897,1723203034194,-637.48,0.00010999,2]
[334554898,1723203034204,-500.0,0.00010999,2]
[334554899,1723203034213,-500.0,0.00010999,2]
[334554900,1723203034222,-500.0,0.00010999,2]
[334554901,1723203034231,-500.0,0.00010999,2]
[334554902,1723203034240,-500.0,0.00010999,2]
[334554903,1723203034251,-586.64,0.00010999,2]
[334554904,1723203034261,-500.0,0.00010999,2]
[334554905,1723203034270,-500.0,0.00010999,2]
[334554906,1723203034280,-500.0,0.00010999,2]
[334554907,1723203034290,-500.0,0.00010999,2]
[334554908,1723203034299,-406.02086984,0.00010999,2]
[334554909,1723203034309,-500.0,0.00010999,2]
[334554910,1723203034318,-500.0,0.00010999,2]
[334554911,1723203034327,-500.0,0.00010999,2]
[334554912,1723203034337,-500.0,0.00010999,2]
[334554913,1723203034346,-500.0,0.00010999,2]
[334554914,1723203034355,-500.0,0.00010999,2]
[334554915,1723203034365,-500.0,0.00010999,2]
[334554916,1723203034375,-500.0,0.00010999,2]
[334554917,1723203034385,-500.0,0.00010999,2]
[334554918,1723203034395,-500.0,0.00010999,2]
[334554919,1723203034405,-500.0,0.00010999,2]
[334554920,1723203034414,-500.0,0.00010999,2]
[334554921,1723203034424,-500.0,0.00010999,2]
[334554922,1723203034434,-500.0,0.00010999,2]
[334554923,1723203034443,-167.76,0.00010999,2]
[334554924,1723203034452,-500.0,0.00010999,2]
[334554925,1723203034462,-500.0,0.00010999,2]
[334554926,1723203034472,-202.22,0.00010999,2]
[334554927,1723203034482,-511.03,0.00010999,2]
[334554928,1723203034491,-500.0,0.00010999,2]
[334554929,1723203034501,-500.0,0.00010999,2]
[334554930,1723203034510,-500.0,0.00010999,2]
[334554931,1723203034520,-500.0,0.00010999,2]
[334554932,1723203034530,-500.0,0.00010999,2]
[334554933,1723203034539,-500.0,0.00010999,2]
[334554934,1723203034549,-520.11,0.00010999,2]
[334554935,1723203034558,-500.0,0.00010999,2]
[334554936,1723203034568,-500.0,0.00010999,2]
[334554937,1723203034577,-500.0,0.00010999,2]
[334554938,1723203034588,-500.0,0.00010999,2]
[334554939,1723203034598,-302.04,0.00010999,2]
[334554940,1723203034607,-619.45,0.00010999,2]
[334554941,1723203034617,-217.74897657,0.00010999,2]
[334554942,1723203034627,-500.0,0.00010999,2]
[334554943,1723203034637,-500.0,0.00010999,2]
[334554944,1723203034647,-525.51,0.00010999,2]
[334554945,1723203034656,-219.22014795,0.00010999,2]
[334554946,1723203034665,-227.23838929,0.00010999,2]
[334554947,1723203034674,-504.01,0.00010999,2]
[334554948,1723203034683,-500.0,0.00010999,2]
[334554949,1723203034693,-587.01,0.00010999,2]
[334554950,1723203034709,-500.0,0.00010999,2]
[334554951,1723203034719,-629.29,0.00010999,2]
[334554952,1723203034728,-627.72,0.00010999,2]
[334554953,1723203034738,-480.0,0.00010999,2]
[334554954,1723203034748,-552.85,0.00010999,2]
[334554955,1723203034757,-500.0,0.00010999,2]
[334554956,1723203034767,-500.0,0.00010999,2]
[334554957,1723203034777,-500.0,0.00010999,2]
[334554958,1723203034786,-500.0,0.00010999,2]
[334554959,1723203034796,-500.0,0.00010999,2]
[334554960,1723203034806,-500.0,0.00010999,2]
[334554961,1723203034815,-481.71,0.00010999,2]
[334554962,1723203034825,-391.885256,0.00010999,2]
[334554963,1723203034834,-500.0,0.00010999,2]
[334554964,1723203034843,-500.0,0.00010999,2]
[334554965,1723203034853,-500.0,0.00010999,2]
[334554966,1723203034862,-500.0,0.00010999,2]
[334554967,1723203034871,-500.0,0.00010999,2]
[334554968,1723203034880,-500.0,0.00010999,2]
[334554969,1723203034891,-500.0,0.00010999,2]
[334554970,1723203034900,-500.0,0.00010999,2]
[334554971,1723203034910,-500.0,0.00010999,2]
[334554972,1723203034920,-500.0,0.00010999,2]
[334554973,1723203034929,-500.0,0.00010999,2]
[334554974,1723203034939,-500.0,0.00010999,2]
[334554975,1723203034948,-500.0,0.00010999,2]
[334554976,1723203034957,-500.0,0.00010999,2]
[334554977,1723203034967,-500.0,0.00010999,2]
[334554978,1723203034976,-500.0,0.00010999,2]
[334554979,1723203034985,-497.0,0.00010999,2]
[334554980,1723203034995,-500.0,0.00010999,2]
[334554981,1723203035004,-500.0,0.00010999,2]
[334554982,1723203035013,-500.0,0.00010999,2]
[334554983,1723203035022,-500.0,0.00010999,2]
[334554984,1723203035032,-500.0,0.00010999,2]
[334554985,1723203035041,-252.47785145,0.00010999,2]
[334554986,1723203035050,-500.0,0.00010999,2]
[334554987,1723203035059,-441.68142185,0.00010999,2]
[334554988,1723203035069,-1006.0,0.00011,2]
[334554989,1723203035079,-49822.60919046,0.00011,2]
[334554990,1723203035099,-446.45853724,0.00011,2]
[334554991,1723203035112,-522.67520343,0.00011,2]
[334554992,1723203035128,-486.78060608,0.00011,2]
[334554993,1723203035143,-1094.89027509,0.00011,2]
[334554994,1723203035154,-2500.0,0.00011,2]
[334554995,1723203035165,-5072.1633,0.00011,2]
[334554996,1723203035178,-1038.68259427,0.00011,2]
[334554997,1723203035189,-786.87675746,0.00011,2]
[334554998,1723203035201,-529.24457597,0.00011,2]
[334554999,1723203035213,-376.37542403,0.00011,2]
[334555105,1723203039772,-714.13926867,0.0001096,2]
[334555107,1723203039785,-52.22073133,0.0001096,2]
[334555109,1723203039795,-631.85591211,0.00011,2]
[334555285,1723203041918,-2094.17295339,0.00011,2]
[334555286,1723203042067,-357.10571602,0.00011,2]
[334555287,1723203042079,-922.01741567,0.00011,2]
[334555288,1723203042218,-1048.21934277,0.00011,2]
[334555332,1723203042630,-320.67306707,0.00011,2]
[334555338,1723203042675,-10988.3773015,0.00011,2]
[334555469,1723203043856,-10105.05987561,0.00011,2]
[334555532,1723203045818,-531.15597812,0.00011,2]
[334555533,1723203045830,-455.85761394,0.00011,2]
[334555534,1723203045842,-7279.43485111,0.00011,2]
[334555535,1723203045901,-3545.68283361,0.00011,2]
[334555536,1723203045913,-3690.46625153,0.00011,2]
[334555537,1723203045924,-557.8322401,0.00011,2]
[334555538,1723203045935,-387.7,0.00011,2]
[334555539,1723203046099,-879.9737992,0.00011,2]
[334555540,1723203046111,-432.00902886,0.00011,2]
[334555541,1723203046123,-4016.93552,0.00011,2]
[334555542,1723203053100,493.49,9.011e-05,2]
[334555543,1723203246619,1000.0,0.00025,60]
[334555545,1723203569391,468.81,8.599e-05,2]
[334555556,1723203975654,3000.0,0.00025,60]
[334555558,1723204004497,319.60453215,0.00025,60]
[334555561,1723204041450,445.36,8.242e-05,2]
[334555589,1723204231844,-608.43444,0.0001,2]
[334555590,1723204231897,-1706.79556,0.0001,2]
[334555591,1723204231907,-613.09,0.00010141,2]
[334555592,1723204231917,-218.39,0.00010193,2]
[334555593,1723204231927,-181.5,0.00010409,2]
[334555594,1723204231937,-49119.02833667,0.00010422,2]
[334555595,1723204231947,-150.0,0.00010422,2]
[334555596,1723204231956,-309.89325485,0.00010423,2]
[334555597,1723204231965,-191.03999424,0.00010423,2]
[334555598,1723204231976,-1257.14886156,0.00010423,2]
[334555599,1723204231986,-386.91,0.00010456,2]
[334555600,1723204231995,-445.36,0.00010506,2]
[334555602,1723204232005,-150.0,0.00010877,2]
[334555604,1723204232015,-300.0,0.00010889,2]
[334555606,1723204232026,-3000.0,0.0001089,2]